bitfinex/quotes_ETHUSD_20250623
["timestamp","ask_amount","ask_price","bid_price","bid_amount"]
[1750676143040,2.383,2251.1,2250.8,1.27495374]
[1750676143217,2.383,2251.1,2250.8,1.31937683]
[1750676143426,2.383,2251.1,2250.8,1.27495374]
[1750676146204,2.383,2251.1,2250.8,1.31937684]
[1750676150502,2.383,2251.1,2250.8,1.27495374]
[1750676151326,2.383,2251.1,2250.8,1.31937685]
[1750676151644,7.383,2251.1,2250.9,7.07187653]
[1750676152656,7.383,2251.1,2250.9,8.4736808]
[1750676152856,5.5,2251.1,2251.0,0.8051]
[1750676156508,5.5,2251.1,2251.0,0.84952004]
[1750676160550,5.5,2251.1,2251.0,5.29199005]
[1750676160753,5.0,2251.1,2251.0,15.29199005]
[1750676161065,5.0,2251.1,2251.0,21.53945623]
[1750676174067,4.53125,2251.1,2251.0,21.53945623]
[1750676178085,4.53125,2251.1,2251.0,28.79145623]
[1750676181878,2.83203125,2251.1,2251.0,28.79145623]
[1750676182078,1.879,2252.0,2251.4,10.55]
[1750676182280,1.879,2252.0,2251.8,7.07187653]
[1750676183146,1.879,2252.0,2251.6,14.32187653]
[1750676183347,1.879,2252.0,2251.6,15.65682053]
[1750676185850,1.879,2252.0,2251.6,16.09937277]
[1750676187484,1.879,2252.0,2251.6,18.70311584]
[1750676189487,1.879,2252.0,2251.6,16.09737277]
[1750676191306,1.879,2252.0,2251.6,1.77749624]
[1750676191809,0.5,2251.8,2251.6,0.44255224]
[1750676191975,0.5,2251.8,2251.4,17.248]
[1750676192312,0.5,2251.8,2251.5,1.335063]
[1750676192611,0.5,2251.8,2251.1,17.248]
[1750676192898,0.7379,2251.8,2251.1,18.583319]
[1750676193066,0.04468394,2251.7,2251.1,19.03123811]
[1750676193490,0.04468394,2251.7,2251.1,23.47346738]
[1750676193696,0.7379,2251.8,2251.3,10.0]
[1750676194568,2.379,2251.8,2251.4,7.07187653]
[1750676198109,2.379,2251.8,2251.2,14.44196463]
[1750676198308,2.379,2251.8,2251.2,21.51384116]
[1750676198470,2.379,2251.8,2251.2,25.95575568]
[1750676199011,2.379,2251.8,2251.2,21.51379105]
[1750676199413,3.34616839,2251.8,2251.2,17.07187653]
[1750676200415,3.34616839,2251.8,2251.2,10.0]
[1750676201011,3.34616839,2251.8,2251.2,14.44205998]
[1750676201717,3.34616839,2251.8,2251.2,10.0]
[1750676202016,3.34616839,2251.8,2251.2,14.44206371]
[1750676204113,3.34616839,2251.8,2251.2,21.51394024]
[1750676204612,2.379,2251.8,2251.4,7.07187653]
[1750676205217,2.379,2251.8,2251.4,7.11628855]
[1750676207428,2.379,2251.8,2251.4,11.55795863]
[1750676207591,2.379,2251.8,2251.4,7.07187653]
[1750676207786,2.379,2251.8,2251.4,7.11628857]
[1750676207995,3.3417,2251.8,2251.4,0.04441204]
[1750676208294,3.3417,2251.8,2251.2,21.51384779]
[1750676211644,3.3417,2251.8,2251.2,17.07187653]
[1750676211807,0.5,2251.8,2251.3,0.04441212]
[1750676212011,0.5,2251.8,2251.4,7.07187653]
[1750676212833,0.54468394,2251.8,2251.1,0.44791911]
[1750676213053,0.54468394,2251.8,2251.0,4.44233715]
[1750676213209,1.875,2251.7,2251.1,11.55840332]
[1750676213401,1.875,2251.7,2251.2,4.4419877]
[1750676213602,0.5,2251.8,2251.2,4.4419877]
[1750676213913,1.875,2251.6,2251.2,4.44207533]
[1750676214114,0.5,2251.8,2251.5,7.07187653]
[1750676214323,0.5,2251.8,2251.7,7.07187653]
[1750676215246,10.677,2252.2,2251.8,4.44078829]
[1750676215454,10.677,2252.2,2251.9,7.11627753]
[1750676216108,10.677,2252.2,2252.0,4.44049445]
[1750676216301,12.552,2252.2,2252.0,4.44049445]
[1750676216503,12.552,2252.2,2251.9,11.51246483]
[1750676216715,12.552,2252.2,2251.9,9.47482374]
[1750676217005,10.677,2252.2,2251.9,9.47482374]
[1750676217548,10.677,2252.2,2251.8,7.249]
[1750676218037,10.677,2252.2,2251.7,7.07187653]
[1750676218202,10.677,2252.2,2251.6,10.0]
[1750676218411,7.29368394,2252.1,2251.3,21.51365231]
[1750676218733,7.29368394,2252.1,2251.4,10.04440631]
[1750676218933,7.249,2252.1,2251.5,1.66024839]
[1750676219138,7.249,2252.1,2251.6,0.04440804]
[1750676219342,7.249,2252.1,2251.5,8.73212492]
[1750676219514,10.677,2252.2,2251.5,8.73212492]
[1750676219711,1.875,2252.1,2251.5,8.73212492]
[1750676220044,1.875,2252.1,2251.6,2.39649037]
[1750676220542,0.5,2251.9,2251.6,2.39649037]
[1750676221546,0.5,2251.9,2251.7,0.04440562]
[1750676222246,1.875,2251.8,2251.7,0.04440562]
[1750676222551,1.875,2251.8,2251.7,0.04440668]
[1750676222727,1.875,2251.8,2251.7,1.43980582]
[1750676222915,1.875,2251.8,2251.7,1.39539914]
[1750676223460,1.875,2251.8,2251.6,2.39649037]
[1750676224314,1.875,2251.8,2251.4,17.07187653]
[1750676226946,1.875,2251.8,2251.3,10.0]
[1750676227343,1.875,2251.8,2251.4,0.04441088]
[1750676227922,1.875,2251.8,2251.3,10.0]
[1750676228120,1.875,2251.8,2251.2,7.07187653]
[1750676228478,0.04468394,2251.7,2251.1,0.44626062]
[1750676228650,0.04468394,2251.7,2251.2,1.60676009]
[1750676232922,0.04468394,2251.7,2251.1,0.44248023]
[1750676233223,1.875,2251.8,2251.1,0.44248023]
[1750676233224,1.875,2251.8,2251.1,0.04441679]
[1750676236493,1.875,2251.8,2251.1,0.48445609]
[1750676242697,1.875,2251.8,2251.1,14.92672793]
[1750676243001,1.875,2251.8,2251.1,14.88231114]
[1750676243201,1.875,2251.8,2251.1,17.57465214]
[1750676243401,0.5,2251.9,2251.2,11.5138634]
[1750676243580,10.677,2252.2,2251.4,11.5134605]
[1750676243766,1.91868394,2252.1,2251.4,11.5134605]
[1750676244717,1.91868394,2252.1,2251.4,7.07187653]
[1750676244868,1.98396839,2252.0,2251.2,7.07187653]
[1750676245066,10.677,2252.2,2251.4,7.07187653]
[1750676245380,1.874,2251.9,2251.2,7.07187653]
[1750676245580,0.04468394,2251.8,2251.1,13.1323803]
[1750676246300,1.874,2251.9,2251.2,0.04441536]
[1750676246688,0.04468394,2251.8,2251.1,13.1323803]
[1750676246901,0.04468394,2251.8,2251.2,2.51733116]
[1750676247071,0.04468394,2251.8,2251.1,10.4400393]
[1750676247270,0.04468394,2251.8,2251.1,10.0]
[1750676248095,0.55,2251.8,2251.1,10.0]
[1750676249209,0.04468394,2251.8,2251.1,10.0]
[1750676249407,1.874,2251.9,2251.2,0.04441535]
[1750676249708,1.874,2251.9,2251.2,9.36833075]
[1750676249907,1.874,2251.9,2251.2,9.3239154]
[1750676250110,1.874,2251.9,2251.3,0.04441432]
[1750676250271,1.874,2251.8,2251.2,9.3239154]
[1750676250471,1.91868394,2251.8,2251.2,9.3239154]
[1750676250705,1.91868394,2251.8,2251.3,1.93239154]
[1750676252015,1.874,2251.7,2251.3,1.93239154]
[1750676252806,10.0,2252.1,2251.3,1.93239154]
[1750676253014,7.244,2251.9,2251.3,1.93239154]
[1750676253175,1.874,2251.8,2251.4,0.04441219]
[1750676253375,1.874,2251.7,2251.4,0.94928022]
[1750676254005,10.0,2252.1,2251.4,0.94928022]
[1750676254204,7.244,2251.9,2251.4,0.04441219]
[1750676254407,10.0,2252.1,2251.4,0.04441219]
[1750676254610,1.874,2251.8,2251.2,7.07187653]
[1750676255782,10.0,2252.1,2251.2,7.07187653]
[1750676255981,9.16268394,2252.0,2251.2,7.07187653]
[1750676256181,9.118,2252.0,2251.3,2.15141382]
[1750676256394,0.04468394,2251.9,2251.3,2.15141382]
[1750676257114,1.873,2251.8,2251.3,2.15141382]
[1750676257277,10.0,2252.1,2251.3,2.15141382]
[1750676257480,9.16168394,2252.0,2251.1,10.0]
[1750676257694,9.117,2252.0,2251.1,10.0]
[1750676257896,0.04468394,2251.9,2251.1,10.0]
[1750676261785,9.117,2252.0,2251.2,0.85841239]
[1750676263201,10.0,2252.1,2251.2,7.93028892]
[1750676263401,9.117,2252.0,2251.3,2.23725183]
[1750676263728,1.873,2252.0,2251.4,0.04441223]
[1750676263928,7.244,2251.9,2251.4,0.04441223]
[1750676266308,7.28868394,2251.9,2251.4,0.04441223]
[1750676266709,10.677,2252.2,2251.4,0.04441223]
[1750676267034,9.116,2252.1,2251.6,7.07187653]
[1750676267195,9.116,2252.1,2251.5,0.8276]
[1750676268249,0.04468394,2252.0,2251.5,0.8276]
[1750676269542,0.04468394,2252.0,2251.4,1.3795615]
[1750676269695,0.04468394,2252.0,2251.3,3.05655183]
[1750676269696,2.02845233,2252.0,2251.3,3.05655183]
[1750676270024,9.116,2252.1,2251.4,0.04441173]
[1750676272743,0.04468394,2252.0,2251.3,3.05655183]
[1750676275539,0.04468394,2252.0,2251.1,10.0]
[1750676277454,7.62187653,2251.9,2251.0,1.76293581]
[1750676277660,0.04468394,2251.8,2251.0,0.43497209]
[1750676277854,0.04468394,2251.8,2250.8,15.21433294]
[1750676278036,0.04468394,2251.8,2250.9,0.04442029]
[1750676278651,0.04468394,2251.8,2250.8,10.7715]
[1750676278966,0.76665605,2251.8,2250.9,2.27305555]
[1750676279361,0.76665605,2251.8,2250.9,9.34493208]
[1750676279524,0.76665605,2251.8,2251.0,10.0]
[1750676279866,0.76665605,2251.8,2250.9,9.7357913]
[1750676280022,0.76665605,2251.8,2251.0,10.0]
[1750676280218,0.76665605,2251.8,2251.1,2.41784507]
[1750676281225,0.55,2251.9,2251.1,2.41784507]
[1750676281426,16.18787653,2252.1,2251.1,2.41784507]
[1750676281626,0.55,2252.0,2251.1,3.2698653]
[1750676281830,10.0,2252.1,2251.1,3.2698653]
[1750676282053,0.04468394,2251.9,2251.2,7.07187653]
[1750676282357,0.04468394,2251.9,2251.3,1.02973216]
[1750676283037,9.115,2251.8,2251.3,1.02973216]
[1750676283238,0.04468394,2251.7,2251.1,3.22544507]
[1750676283659,1.873,2251.6,2251.1,3.22544507]
[1750676283865,1.873,2251.5,2251.1,3.22544507]
[1750676284878,1.873,2251.4,2251.3,0.8198]
[1750676285070,1.873,2251.5,2251.4,7.07187653]
[1750676285266,1.873,2251.6,2251.3,1.14800597]
[1750676285445,1.873,2251.6,2251.1,3.19164507]
[1750676286686,1.873,2251.6,2251.2,0.04441455]
[1750676287098,1.873,2251.6,2251.1,10.2635216]
[1750676287412,0.04468394,2251.9,2251.1,10.2635216]
[1750676287549,1.872,2251.5,2251.1,10.2635216]
[1750676287747,1.872,2251.5,2251.2,2.02635216]
[1750676288363,1.872,2251.5,2251.2,2.07076679]
[1750676289082,1.872,2251.5,2251.2,2.02635216]
[1750676295600,0.04468394,2251.8,2251.2,2.02635216]
[1750676295930,1.872,2251.7,2251.0,10.7698]
[1750676296119,0.04468394,2251.6,2251.0,10.7698]
[1750676298424,1.872,2251.7,2251.1,0.04441618]
[1750676299231,1.872,2251.6,2251.1,0.04441618]
[1750676299411,1.872,2251.5,2251.1,0.04441618]
[1750676299732,1.872,2251.5,2251.1,2.32081978]
[1750676300626,1.872,2251.4,2251.1,9.39269631]
[1750676300830,1.872,2251.4,2251.1,9.34828013]
[1750676301860,0.55,2252.0,2251.1,9.34828013]
[1750676302149,9.112,2251.9,2251.2,0.04441618]
[1750676302855,0.55,2252.0,2251.2,0.04441618]
[1750676303057,1.872,2251.8,2251.2,0.04441618]
[1750676304456,0.55,2252.0,2251.2,0.04441618]
[1750676304659,9.112,2251.9,2251.2,0.04441618]
[1750676304857,0.9662,2251.8,2251.2,0.04441618]
[1750676305019,1.872,2251.7,2251.2,0.04441618]
[1750676305223,0.9662,2251.8,2251.2,0.04441618]
[1750676305463,1.872,2251.7,2251.2,0.04441618]
[1750676305754,1.872,2251.7,2251.2,10.04441618]
[1750676305935,1.872,2251.6,2251.2,10.0]
[1750676309861,1.872,2251.6,2251.0,0.7698]
[1750676310062,0.04468394,2251.8,2251.0,0.7698]
[1750676310363,1.872,2251.7,2251.0,0.7698]
[1750676310563,0.04468394,2251.6,2251.1,10.0]
[1750676310925,1.872,2251.5,2251.1,10.0]
[1750676312573,1.872,2251.5,2251.2,0.04441773]
[1750676312938,1.872,2251.5,2251.3,0.7935]
[1750676313539,1.872,2251.4,2251.3,0.7935]
[1750676313763,1.872,2251.4,2251.3,2.58447943]
[1750676314337,7.62187653,2252.1,2251.3,2.58447943]
[1750676314571,9.11,2252.0,2251.3,0.7935]
[1750676314968,7.62187653,2252.1,2251.3,0.7935]
[1750676315175,9.11,2252.0,2251.3,0.7935]
[1750676315336,7.62187653,2251.8,2251.2,0.04441624]
[1750676315677,0.55,2251.9,2250.9,1.24329576]
[1750676315884,9.11,2251.7,2250.9,3.51910991]
[1750676316197,0.81718765,2251.8,2250.9,3.51910991]
[1750676316399,1.872,2251.6,2250.9,3.51910991]
[1750676316567,1.872,2251.6,2251.0,0.7888]
[1750676316895,1.872,2251.5,2251.2,0.7888]
[1750676321809,1.872,2251.5,2251.2,1.86768]
[1750676326118,0.04468394,2251.4,2251.0,10.8194]
[1750676326903,0.04468394,2251.4,2251.0,0.8194]
[1750676330229,0.04468394,2251.4,2250.6,0.8136]
[1750676330426,0.04468394,2251.4,2250.7,1.335562]
[1750676331515,0.04468394,2251.4,2250.7,11.335562]
[1750676331897,0.04468394,2251.4,2250.8,11.92210385]
[1750676332097,0.04468394,2251.4,2250.8,10.0]
[1750676332549,1.872,2251.5,2250.8,10.0]
[1750676332735,16.58783017,2253.0,2250.9,10.83462525]
[1750676332736,7.62187653,2252.0,2250.9,10.83462525]
[1750676333037,9.105,2251.9,2251.1,0.7902]
[1750676333195,9.105,2251.9,2251.1,0.83461649]
[1750676333933,1.869,2251.8,2251.1,0.83461649]
[1750676334131,0.04468394,2251.7,2251.1,2.15864183]
[1750676338839,0.04468394,2251.7,2251.1,0.7902]
[1750676343758,0.55,2251.6,2250.8,10.7541]
[1750676343938,0.04468394,2251.5,2250.8,10.7541]
[1750676344865,0.04468394,2251.5,2250.8,0.7541]
[1750676349374,0.55,2251.6,2250.8,0.7541]
[1750676349566,0.76218765,2251.5,2250.8,0.7541]
[1750676350480,0.04468394,2251.4,2250.8,0.7541]
[1750676350646,1.867,2251.3,2250.8,0.7541]
[1750676350846,0.04468394,2251.2,2250.8,0.7541]
[1750676358511,9.1,2251.3,2250.8,0.7541]
[1750676358699,0.91,2251.2,2250.8,0.7541]
[1750676359700,1.91168394,2251.1,2250.8,0.7541]
[1750676361109,1.867,2251.0,2250.8,0.7541]
[1750676361404,1.91168394,2250.9,2250.8,0.7541]
[1750676361883,1.91168394,2250.9,2250.5,0.7756]
[1750676361884,0.04468394,2250.9,2250.5,0.7756]
[1750676362090,1.867,2250.8,2250.5,0.7756]
[1750676362408,7.232,2251.1,2250.5,0.7756]
[1750676362409,1.867,2250.7,2250.5,0.7756]
[1750676367222,1.867,2250.7,2250.5,10.7756]
[1750676367439,1.867,2250.7,2250.5,13.56034765]
[1750676367636,1.867,2250.7,2250.6,17.87157653]
[1750676367808,0.76218765,2251.5,2250.8,0.7997]
[1750676368003,9.099,2251.4,2250.8,0.7997]
[1750676368822,0.04468394,2251.3,2250.8,0.7997]
[1750676370847,1.867,2251.2,2250.8,0.84412532]
[1750676371007,1.867,2251.1,2250.8,0.84412532]
[1750676371462,1.867,2251.1,2250.8,0.7997]
[1750676371637,1.867,2251.1,2250.8,2.58685765]
[1750676373425,1.867,2251.1,2250.8,0.7997]
[1750676377134,0.04468394,2251.0,2250.8,0.7997]
[1750676378069,1.867,2251.1,2250.8,0.7997]
[1750676379450,7.62187653,2251.7,2250.8,0.7997]
[1750676379750,0.55,2251.5,2250.8,0.7997]
[1750676379934,0.9644,2251.4,2250.8,0.7997]
[1750676380547,0.04468394,2251.3,2250.8,0.7997]
[1750676387572,0.04468394,2251.3,2250.6,0.8254]
[1750676390165,0.9644,2251.4,2250.6,7.07187653]
[1750676390352,9.092,2251.3,2250.7,0.792]
[1750676390548,9.13668394,2251.3,2250.7,0.792]
[1750676390758,9.092,2251.3,2250.7,0.792]
[1750676390961,0.04468394,2251.2,2250.7,0.792]
[1750676397196,1.864,2251.1,2250.7,0.792]
[1750676397395,0.04468394,2251.0,2250.7,0.792]
[1750676397578,0.04468394,2251.0,2250.7,1.8712]
[1750676397745,0.04468394,2251.0,2250.7,0.792]
[1750676400400,1.864,2251.1,2250.7,0.792]
[1750676400556,0.55,2251.5,2250.8,0.7723]
[1750676400758,0.55,2251.5,2251.0,0.7723]
[1750676400759,1.864,2251.4,2251.0,0.7723]
[1750676400962,1.864,2251.4,2251.0,1.56116022]
[1750676401344,1.864,2251.4,2251.1,0.7513]
[1750676402190,10.675,2251.9,2251.1,0.7513]
[1750676402375,1.90868394,2251.8,2251.1,0.7513]
[1750676402688,7.227,2251.7,2251.1,0.7513]
[1750676402892,0.04468394,2251.6,2251.1,0.7513]
[1750676406164,0.55,2251.6,2251.1,0.7513]
[1750676406700,0.59468394,2251.6,2251.1,0.7513]
[1750676407812,0.59468394,2251.6,2250.8,10.782]
[1750676407991,0.59468394,2251.6,2250.8,0.782]
[1750676407992,0.55,2251.6,2250.8,0.782]
[1750676408195,0.55,2251.4,2250.9,0.782]
[1750676408397,1.864,2251.3,2250.9,0.782]
[1750676411530,1.864,2251.3,2251.0,0.8165]
[1750676419290,1.864,2251.3,2250.8,0.7921]
[1750676422726,0.04468394,2251.2,2250.8,0.7921]
[1750676423093,1.864,2251.3,2250.8,0.7921]
[1750676424031,0.5,2251.1,2250.8,0.7921]
[1750676426549,0.5,2251.1,2250.9,10.0]
[1750676426713,0.5,2251.1,2251.0,1.78639765]
[1750676429847,7.07187653,2252.4,2251.0,7.07187653]
[1750676430128,1.862,2251.8,2251.4,0.8144]
[1750676431516,1.862,2251.8,2251.5,7.89267653]
[1750676432306,1.862,2251.7,2251.5,7.89267653]
[1750676433058,0.2250348,2252.5,2251.5,7.07187653]
[1750676433218,0.2250348,2252.5,2251.8,0.8049]
[1750676433540,12.537,2251.9,2251.8,0.8049]
[1750676435342,12.537,2251.9,2251.5,7.07187653]
[1750676435343,12.537,2251.9,2251.4,0.7797]
[1750676435511,0.04468394,2251.8,2251.4,0.7797]
[1750676435714,12.537,2251.9,2251.4,0.7797]
[1750676435915,12.537,2251.9,2251.5,1.07797]
[1750676436114,1.861,2251.8,2251.5,1.07797]
[1750676436619,1.861,2251.8,2251.6,0.8251]
[1750676440147,1.861,2251.8,2251.7,0.8096]
[1750676441640,12.534,2251.9,2251.7,0.8096]
[1750676442353,12.534,2251.9,2251.7,1.4425049]
[1750676443324,12.534,2251.9,2251.7,0.8096]
[1750676447830,12.534,2251.9,2251.8,7.86027653]
[1750676448227,0.2250348,2252.5,2251.8,7.86027653]
[1750676448453,0.2250348,2252.5,2251.8,7.9046791]
[1750676448645,9.076,2252.4,2251.8,7.9046791]
[1750676448847,9.076,2252.4,2251.8,9.58337448]
[1750676449048,9.076,2252.4,2251.8,9.53897191]
[1750676449420,1.859,2252.4,2251.8,9.53897191]
[1750676449622,7.26168394,2252.3,2251.8,0.7884]
[1750676451276,1.859,2252.2,2251.8,7.07187653]
[1750676451422,1.859,2252.2,2251.9,0.7892]
[1750676451755,1.90368394,2252.2,2251.9,0.7892]
[1750676455871,2.81575233,2252.2,2251.9,0.7892]
[1750676457275,2.81575233,2252.2,2251.6,0.7761]
[1750676457576,1.90368394,2252.2,2251.6,0.7761]
[1750676460503,1.90368394,2252.2,2251.6,5.21737661]
[1750676460867,1.859,2252.2,2251.8,0.8307]
[1750676462079,0.2250348,2252.5,2251.8,0.8307]
[1750676462284,9.074,2252.4,2252.0,0.8172]
[1750676463997,0.04468394,2252.3,2252.0,0.8172]
[1750676464206,0.04468394,2252.3,2251.6,4.4411602]
[1750676464207,0.04468394,2252.3,2251.7,0.8206]
[1750676467199,0.04468394,2252.3,2251.5,1.88157]
[1750676467771,0.04468394,2252.3,2251.2,12.99112107]
[1750676467772,10.55,2252.2,2251.2,0.7789]
[1750676468086,0.55,2252.0,2251.2,0.7789]
[1750676468288,9.11668394,2251.9,2251.2,0.7789]
[1750676468488,10.74585605,2251.9,2251.2,0.7789]
[1750676469785,0.04468394,2251.8,2251.2,0.7789]
[1750676470183,10.74585605,2251.9,2251.2,0.7789]
[1750676470580,0.55,2252.4,2251.3,0.04441728]
[1750676470778,0.55,2252.2,2251.3,0.04441728]
[1750676471084,9.07,2252.1,2251.3,0.04441728]
[1750676471279,0.55,2252.2,2251.3,4.48624855]
[1750676471479,9.07,2252.1,2251.4,12.28175585]
[1750676471690,9.11468394,2252.0,2251.5,1.67680044]
[1750676471897,1.857,2251.9,2251.5,1.67680044]
[1750676473208,0.55,2252.4,2251.5,1.67680044]
[1750676473511,0.55,2252.4,2251.6,0.04440837]
[1750676473805,1.90168394,2252.3,2251.7,0.8037]
[1750676474113,1.857,2252.3,2251.7,0.8037]
[1750676474411,1.90168394,2252.3,2251.7,0.8037]
[1750676474998,1.857,2252.2,2251.7,6.4764625]
[1750676475197,1.857,2252.2,2251.7,2.0353944]
[1750676475516,1.857,2252.2,2251.8,0.04440325]
[1750676475880,0.2250348,2252.5,2251.8,0.04440325]
[1750676476110,1.857,2252.4,2251.8,7.07187653]
[1750676476315,9.11568394,2252.4,2251.9,1.35483247]
[1750676476510,9.071,2252.4,2252.0,0.8297]
[1750676476816,1.857,2252.3,2252.0,0.8297]
[1750676478182,1.856,2252.2,2252.0,0.8297]
[1750676484927,1.856,2252.2,2252.0,0.87409999]
[1750676485226,1.856,2252.2,2252.1,0.66695831]
[1750676485432,1.856,2252.2,2252.0,0.87409999]
[1750676486033,1.856,2252.2,2252.0,0.8297]
[1750676487834,1.856,2252.3,2252.0,0.8297]
[1750676489636,0.2250348,2252.5,2252.0,0.8297]
[1750676489836,1.856,2252.3,2252.0,5.27009658]
[1750676490004,1.856,2252.3,2252.1,0.52700966]
[1750676490730,1.856,2252.4,2252.1,0.52700966]
[1750676491935,1.856,2252.4,2252.0,0.8297]
[1750676492133,0.2250348,2252.5,2252.0,0.8297]
[1750676492314,1.856,2252.4,2252.0,0.8297]
[1750676493130,1.856,2252.4,2252.0,5.27016425]
[1750676493330,1.856,2252.4,2252.0,0.8297]
[1750676493633,1.856,2252.4,2252.1,0.52702717]
[1750676496315,0.2250348,2252.5,2252.1,0.52702717]
[1750676496515,1.856,2252.4,2252.1,0.52702717]
[1750676497041,0.2250348,2252.5,2252.1,0.52702717]
[1750676497422,1.856,2252.4,2252.1,0.52702717]
[1750676498673,1.856,2252.4,2252.0,0.8297]
[1750676498943,1.856,2252.4,2252.0,0.87409648]
[1750676499111,2.0810348,2252.5,2252.1,4.44022677]
[1750676499311,2.0810348,2252.5,2252.3,0.7677]
[1750676499512,0.2250348,2252.5,2252.3,0.7677]
[1750676500038,0.2250348,2252.5,2252.3,6.88383914]
[1750676500248,0.2250348,2252.5,2252.4,0.81209309]
[1750676500860,0.2250348,2252.5,2252.4,0.7677]
[1750676501724,0.2250348,2252.5,2252.4,0.81209053]
[1750676502711,0.2250348,2252.5,2252.4,5.25179928]
[1750676502915,0.2250348,2252.5,2252.4,7.09578892]
[1750676504352,0.2250348,2252.5,2252.4,2.65608017]
[1750676506654,0.2250348,2252.5,2252.4,7.09578892]
[1750676510152,0.2250348,2252.5,2252.4,8.43022192]
[1750676510352,0.2250348,2252.5,2252.4,18.43022192]
[1750676510553,0.2250348,2252.5,2252.4,18.38583139]
[1750676513665,0.225,2253.9,2252.7,0.8311]
[1750676513962,12.524,2253.7,2253.1,5.2693586]
[1750676514167,1.854,2253.7,2253.2,7.25137525]
[1750676514531,1.854,2253.7,2253.3,5.23790532]
[1750676514863,1.854,2253.7,2253.4,0.04437167]
[1750676515065,0.26968394,2254.2,2253.5,0.8001]
[1750676515245,2.12368394,2254.2,2253.5,0.8001]
[1750676515433,2.12368394,2254.2,2253.5,8.0071]
[1750676515638,2.079,2254.2,2253.6,0.04436813]
[1750676515839,0.225,2254.2,2253.6,0.04436813]
[1750676516166,0.225,2254.2,2253.6,1.54585701]
[1750676516556,0.225,2254.2,2253.6,1.50148888]
[1750676517070,0.225,2254.2,2253.6,8.70748888]
[1750676517071,0.04468394,2254.1,2253.6,8.70748888]
[1750676517269,0.04468394,2254.1,2253.6,1.50148888]
[1750676517446,0.225,2253.9,2253.3,7.206]
[1750676517646,0.04468394,2253.8,2253.3,7.206]
[1750676517850,0.225,2253.7,2253.2,1.334078]
[1750676518150,0.225,2253.5,2252.9,0.7626]
[1750676518461,0.225,2253.5,2252.9,3.0033664]
[1750676518844,0.225,2253.5,2253.0,1.334238]
[1750676519664,0.225,2253.5,2253.0,1.77469439]
[1750676521267,0.225,2253.5,2253.1,0.04437936]
[1750676521677,0.225,2253.5,2253.0,1.77469439]
[1750676521876,0.225,2253.5,2253.0,3.15243964]
[1750676522943,0.225,2253.5,2253.1,0.04437865]
[1750676523470,2.079,2253.5,2253.1,0.04437865]
[1750676523671,1.854,2253.5,2253.1,0.04437865]
[1750676524244,1.854,2253.5,2253.0,14.66283168]
[1750676524448,1.854,2253.5,2253.1,2.21048826]
[1750676525196,1.854,2253.5,2253.0,7.59095515]
[1750676525350,1.854,2253.5,2253.0,6.25671715]
[1750676525687,1.854,2253.5,2253.1,1.334131]
[1750676527186,0.225,2253.4,2253.0,0.44045639]
[1750676527475,0.225,2253.4,2253.0,1.334219]
[1750676531183,0.225,2253.4,2253.0,1.78394527]
[1750676531673,1.854,2253.5,2253.1,0.83517828]
[1750676532070,2.077,2253.6,2253.1,7.90705481]
[1750676533463,0.225,2253.6,2253.1,7.90705481]
[1750676533663,0.225,2253.8,2253.3,7.07187653]
[1750676533982,0.225,2253.8,2253.4,0.04437183]
[1750676535157,0.225,2253.8,2253.4,1.28883172]
[1750676536670,0.225,2253.8,2253.5,0.04436917]
[1750676536875,2.077,2254.0,2253.5,0.04436917]
[1750676537062,2.077,2254.0,2253.4,3.39728472]
[1750676537259,2.077,2254.0,2253.4,0.7745]
[1750676538206,2.077,2254.0,2253.5,0.04437163]
[1750676538878,2.077,2254.0,2253.4,0.7745]
[1750676539390,2.077,2254.0,2253.5,0.04436904]
[1750676539600,2.077,2254.0,2253.4,0.7745]
[1750676539777,2.077,2254.0,2253.5,0.91803295]
[1750676540199,2.077,2254.0,2253.6,0.04436902]
[1750676540999,2.077,2254.0,2253.5,0.91803295]
[1750676541195,1.852,2254.0,2253.5,0.91803295]
[1750676541901,1.852,2254.0,2253.5,2.25186095]
[1750676542087,1.852,2254.0,2253.6,0.74640672]
[1750676542271,1.852,2254.0,2253.5,2.25186095]
[1750676542468,0.225,2253.9,2253.5,0.91803295]
[1750676542864,0.225,2253.9,2253.2,14.4380186]
[1750676542865,0.26968394,2253.9,2253.2,0.7943]
[1750676543299,0.26968394,2253.9,2253.2,2.128342]
[1750676543502,0.26968394,2253.9,2253.2,0.7943]
[1750676545085,0.225,2253.9,2253.3,0.0443744]
[1750676545988,1.852,2254.1,2253.4,0.7868]
[1750676546291,0.04468394,2254.0,2253.4,2.64326145]
[1750676546975,0.225,2253.9,2253.4,2.64326145]
[1750676547175,0.225,2253.9,2253.4,1.85646145]
[1750676548400,0.225,2253.9,2253.5,0.04436964]
[1750676549012,0.225,2253.9,2253.4,1.85646145]
[1750676549915,0.225,2253.9,2253.5,1.42850896]
[1750676550212,0.225,2253.9,2253.5,1.38413935]
[1750676550512,0.225,2253.9,2253.5,0.7547]
[1750676551316,0.225,2253.9,2253.4,1.85646145]
[1750676551811,0.04468394,2253.8,2253.3,0.7685]
[1750676552015,0.225,2253.7,2253.2,1.334113]
[1750676552218,0.225,2253.5,2253.2,1.334113]
[1750676552399,0.04468394,2253.4,2252.8,0.8297]
[1750676552604,0.04468394,2253.4,2252.9,0.80317]
[1750676553178,0.225,2253.5,2252.9,0.80317]
[1750676553179,0.225,2253.5,2253.0,0.0443824]
[1750676553724,1.852,2253.6,2253.1,0.7709]
[1750676554426,1.852,2253.6,2253.2,0.04437669]
[1750676554721,0.04468394,2253.7,2253.3,7.88327653]